[Event "*** Titled Tuesday Blitz AM"]
[Site "Chess.com"]
[Date "2020.01.07"]
[Round "2"]
[White "GremioPrudente"]
[Black "muran29"]
[Result "1-0"]
[WhiteElo "2265"]
[BlackElo "2480"]
[TimeControl "180+2"]
[EndTime "9:24:05 PST"]
[Termination "GremioPrudente won by resignation"]

1. Nf3 {[%clk 0:03:01.9]} 1... d5 {[%clk 0:02:51.7]} 2. d4 {[%clk 0:03:02.9]}
2... e6 {[%clk 0:02:47.1]} 3. c4 {[%clk 0:03:04.2]} 3... Nf6 {[%clk 0:02:48.2]}
4. Nc3 {[%clk 0:03:05.5]} 4... c6 {[%clk 0:02:49.5]} 5. e3 {[%clk 0:03:04.5]}
5... Nbd7 {[%clk 0:02:49.6]} 6. Bd3 {[%clk 0:03:00.2]} 6... Bd6 {[%clk
0:02:50.5]} 7. O-O {[%clk 0:03:00.2]} 7... O-O {[%clk 0:02:48.8]} 8. e4 {[%clk
0:03:00.9]} 8... dxe4 {[%clk 0:02:49.4]} 9. Nxe4 {[%clk 0:03:02.4]} 9... Nxe4
{[%clk 0:02:51.3]} 10. Bxe4 {[%clk 0:03:03.9]} 10... Nf6 {[%clk 0:02:53]} 11.
Bc2 {[%clk 0:03:04.9]} 11... c5 {[%clk 0:02:53.6]} 12. dxc5 {[%clk 0:02:35]}
12... Bxc5 {[%clk 0:02:55.5]} 13. Qe2 {[%clk 0:02:25.2]} 13... h6 {[%clk
0:02:47.2]} 14. Bf4 {[%clk 0:02:17.7]} 14... Qe7 {[%clk 0:02:37]} 15. Rfd1
{[%clk 0:02:18.5]} 15... b6 {[%clk 0:02:15.2]} 16. a3 {[%clk 0:02:19.3]} 16...
a5 {[%clk 0:02:16.2]} 17. Nd4 {[%clk 0:02:08.7]} 17... Bb7 {[%clk 0:01:57.2]}
18. Nb3 {[%clk 0:02:09.7]} 18... Rad8 {[%clk 0:01:56]} 19. Nxc5 {[%clk
0:02:01.4]} 19... Qxc5 {[%clk 0:01:55.3]} 20. b3 {[%clk 0:02:01.1]} 20... Qc6
{[%clk 0:01:41.3]} 21. f3 {[%clk 0:01:55.4]} 21... Rd7 {[%clk 0:01:41.8]} 22.
Rxd7 {[%clk 0:01:49.5]} 22... Nxd7 {[%clk 0:01:43.7]} 23. Rd1 {[%clk 0:01:50.8]}
23... e5 {[%clk 0:01:29.6]} 24. Qd3 {[%clk 0:01:45]} 24... f5 {[%clk 0:01:14.2]}
25. Qxd7 {[%clk 0:01:35.2]} 25... exf4 {[%clk 0:01:09.4]} 26. Qxc6 {[%clk
0:01:35.5]} 26... Bxc6 {[%clk 0:01:11.3]} 27. Rd6 {[%clk 0:01:24.8]} 27... Rc8
{[%clk 0:01:08.2]} 28. Bxf5 {[%clk 0:01:19.4]} 28... Rc7 {[%clk 0:01:02.9]} 29.
Bg6 {[%clk 0:01:20.4]} 29... Kf8 {[%clk 0:00:48.4]} 30. Rd4 {[%clk 0:01:21.5]}
30... Ke7 {[%clk 0:00:41.4]} 31. Rxf4 {[%clk 0:01:21.9]} 31... Kd6 {[%clk
0:00:42.6]} 32. Be4 {[%clk 0:01:20]} 32... Ke5 {[%clk 0:00:40]} 33. Rg4 {[%clk
0:01:09.4]} 33... h5 {[%clk 0:00:31.8]} 34. Rg5+ {[%clk 0:01:07.4]} 34... Kd4
{[%clk 0:00:32.8]} 35. Rxh5 {[%clk 0:00:58.8]} 35... Kc3 {[%clk 0:00:25.1]} 36.
Bxc6 {[%clk 0:00:57.8]} 36... Rxc6 {[%clk 0:00:27]} 37. Rb5 {[%clk 0:00:59]}
37... a4 {[%clk 0:00:18.7]} 38. bxa4 {[%clk 0:00:56]} 38... Kxc4 {[%clk
0:00:20.6]} 39. Kf2 {[%clk 0:00:55.3]} 39... Rd6 {[%clk 0:00:15.2]} 40. Rb4+
{[%clk 0:00:53]} 40... Kd5 {[%clk 0:00:13.4]} 41. a5 {[%clk 0:00:52.1]} 41...
bxa5 {[%clk 0:00:12.1]} 42. Rb5+ {[%clk 0:00:53.4]} 42... Ke6 {[%clk 0:00:13.7]}
43. Rxa5 {[%clk 0:00:55.3]} 43... Rd2+ {[%clk 0:00:15.4]} 44. Kg3 {[%clk
0:00:55.9]} 44... Kf6 {[%clk 0:00:16.7]} 45. Ra8 {[%clk 0:00:55.3]} 45... Ra2
{[%clk 0:00:18]} 46. a4 {[%clk 0:00:56.2]} 46... Kg6 {[%clk 0:00:19.1]} 47. a5
{[%clk 0:00:57.3]} 47... Kh7 {[%clk 0:00:20.7]} 48. a6 {[%clk 0:00:57.8]} 48...
Ra4 {[%clk 0:00:22.4]} 49. h4 {[%clk 0:00:54.9]} 49... Ra5 {[%clk 0:00:23]} 50.
a7 {[%clk 0:00:48.3]} 50... Ra4 {[%clk 0:00:24]} 51. Kh3 {[%clk 0:00:47]} 51...
Ra3 {[%clk 0:00:25.2]} 52. Kg4 {[%clk 0:00:45.1]} 52... Ra5 {[%clk 0:00:26.2]}
53. g3 {[%clk 0:00:43.9]} 53... Ra4+ {[%clk 0:00:26.8]} 54. f4 {[%clk 0:00:45]}
54... Ra5 {[%clk 0:00:28.7]} 55. Kf3 {[%clk 0:00:35.5]} 55... Ra3+ {[%clk
0:00:29.9]} 56. Ke4 {[%clk 0:00:35]} 56... Ra4+ {[%clk 0:00:31.3]} 57. Kd5
{[%clk 0:00:34.2]} 57... Rxa7 {[%clk 0:00:32.8]} 58. Rxa7 {[%clk 0:00:34.2]} 1-0

[Event "*** Titled Tuesday Blitz AM"]
[Site "Chess.com"]
[Date "2020.01.07"]
[Round "2"]
[White "capatl"]
[Black "Kriari"]
[Result "1-0"]
[WhiteElo "2660"]
[BlackElo "2913"]
[TimeControl "180+2"]
[EndTime "9:24:06 PST"]
[Termination "capatl won by resignation"]

1. c4 {[%clk 0:03:01.9]} 1... Nf6 {[%clk 0:03:00.8]} 2. Nc3 {[%clk 0:03:02.7]}
2... g6 {[%clk 0:03:02.7]} 3. g3 {[%clk 0:03:03.3]} 3... Bg7 {[%clk 0:03:03.6]}
4. Bg2 {[%clk 0:03:04.9]} 4... O-O {[%clk 0:03:05.5]} 5. e3 {[%clk 0:03:05.5]}
5... e5 {[%clk 0:03:03.6]} 6. Nge2 {[%clk 0:03:06.3]} 6... d6 {[%clk 0:03:02.6]}
7. O-O {[%clk 0:03:06.4]} 7... h5 {[%clk 0:03:00.4]} 8. h3 {[%clk 0:03:02.6]}
8... Nc6 {[%clk 0:03:01.6]} 9. d4 {[%clk 0:02:57.4]} 9... h4 {[%clk 0:03:02.7]}
10. g4 {[%clk 0:02:57.9]} 10... Nxg4 {[%clk 0:03:04.3]} 11. hxg4 {[%clk
0:02:58.7]} 11... Bxg4 {[%clk 0:03:06.2]} 12. f3 {[%clk 0:02:55]} 12... Bh5
{[%clk 0:03:07.3]} 13. d5 {[%clk 0:02:51.3]} 13... Ne7 {[%clk 0:03:08.6]} 14. e4
{[%clk 0:02:52.3]} 14... f5 {[%clk 0:03:05.2]} 15. Bg5 {[%clk 0:02:51]} 15...
Bf6 {[%clk 0:03:06.5]} 16. Qd2 {[%clk 0:02:51.2]} 16... f4 {[%clk 0:02:31.5]}
17. Bxf6 {[%clk 0:02:42.9]} 17... Rxf6 {[%clk 0:02:33.4]} 18. Bh3 {[%clk
0:02:42.4]} 18... Kh7 {[%clk 0:02:35]} 19. Kf2 {[%clk 0:02:37.6]} 19... c6
{[%clk 0:02:29.6]} 20. Rg1 {[%clk 0:02:08.3]} 20... Qb6+ {[%clk 0:02:23.2]} 21.
Kg2 {[%clk 0:02:08.1]} 21... g5 {[%clk 0:02:24]} 22. Raf1 {[%clk 0:02:05.6]}
22... g4 {[%clk 0:02:11.8]} 23. fxg4 {[%clk 0:01:40.4]} 23... Rg8 {[%clk
0:01:56.3]} 24. Kh2 {[%clk 0:01:34.7]} 24... f3 {[%clk 0:00:32.2]} 25. Nc1
{[%clk 0:01:08.8]} 25... f2 {[%clk 0:00:06.7]} 26. Rg2 {[%clk 0:01:07.4]} 26...
Bxg4 {[%clk 0:00:03.7]} 27. Bxg4 {[%clk 0:01:02.7]} 27... Rf4 {[%clk 0:00:04.9]}
28. Bh3 {[%clk 0:00:57.5]} 28... Rxg2+ {[%clk 0:00:06.8]} 29. Bxg2 {[%clk
0:00:58.8]} 29... Ng6 {[%clk 0:00:08.5]} 30. Nd3 {[%clk 0:00:59.4]} 30... Rg4
{[%clk 0:00:10]} 31. Qxf2 {[%clk 0:00:57.4]} 31... Qd8 {[%clk 0:00:09.8]} 32.
Bh3 {[%clk 0:00:56.9]} 32... Rg3 {[%clk 0:00:10.9]} 33. Qf7+ {[%clk 0:00:57.6]}
33... Kh6 {[%clk 0:00:12.1]} 34. Bf5 {[%clk 0:00:56.9]} 34... Qg5 {[%clk
0:00:07.1]} 35. Qxg6+ {[%clk 0:00:57.9]} 35... Qxg6 {[%clk 0:00:08.2]} 36. Bxg6
{[%clk 0:00:59.8]} 36... Rxd3 {[%clk 0:00:07]} 37. dxc6 {[%clk 0:00:56.2]} 37...
bxc6 {[%clk 0:00:07.3]} 38. Be8 {[%clk 0:00:56.5]} 38... Rd2+ {[%clk 0:00:07.6]}
39. Kh3 {[%clk 0:00:57.8]} 39... Rxb2 {[%clk 0:00:09.5]} 40. Bxc6 {[%clk
0:00:57.8]} 40... Rc2 {[%clk 0:00:10.9]} 41. Rf3 {[%clk 0:00:59]} 41... Kg5
{[%clk 0:00:11.7]} 42. Bd5 {[%clk 0:00:55.7]} 42... Rc1 {[%clk 0:00:12.6]} 43.
Nb5 {[%clk 0:00:55.4]} 43... Rh1+ {[%clk 0:00:12.4]} 44. Kg2 {[%clk 0:00:56.6]}
44... Ra1 {[%clk 0:00:14.3]} 45. Nxd6 {[%clk 0:00:57.5]} 45... Rxa2+ {[%clk
0:00:13.6]} 46. Kh3 {[%clk 0:00:58.2]} 46... a5 {[%clk 0:00:10.3]} 47. Rf5+
{[%clk 0:00:58.6]} 47... Kg6 {[%clk 0:00:10.3]} 48. Kxh4 {[%clk 0:00:59.9]}
48... a4 {[%clk 0:00:11.1]} 49. c5 {[%clk 0:01:01.1]} 49... Rh2+ {[%clk
0:00:10.6]} 50. Kg3 {[%clk 0:01:02]} 50... Rh1 {[%clk 0:00:11.6]} 51. Rxe5
{[%clk 0:01:00.8]} 51... a3 {[%clk 0:00:13]} 52. c6 {[%clk 0:00:57.7]} 52... Rc1
{[%clk 0:00:11.4]} 53. Re7 {[%clk 0:00:57.3]} 53... Kf6 {[%clk 0:00:07.7]} 54.
Re6+ {[%clk 0:00:57.9]} 54... Kg7 {[%clk 0:00:07.3]} 55. Kf4 {[%clk 0:00:59.8]}
55... Rxc6 {[%clk 0:00:05.3]} 56. Bxc6 {[%clk 0:00:59.4]} 56... a2 {[%clk
0:00:06.7]} 57. Re7+ {[%clk 0:01:00.5]} 57... Kf6 {[%clk 0:00:04.3]} 58. Ra7
{[%clk 0:01:02.4]} 58... Ke6 {[%clk 0:00:04.1]} 59. Rxa2 {[%clk 0:01:02.9]} 1-0

[Event "*** Titled Tuesday Blitz AM"]
[Site "Chess.com"]
[Date "2020.01.07"]
[Round "2"]
[White "Zubrrr"]
[Black "MattyDPerrine"]
[Result "1-0"]
[WhiteElo "2720"]
[BlackElo "2336"]
[TimeControl "180+2"]
[EndTime "9:24:09 PST"]
[Termination "Zubrrr won by resignation"]

1. c4 {[%clk 0:03:01.9]} 1... c5 {[%clk 0:02:58.2]} 2. g3 {[%clk 0:03:02.4]}
2... Nc6 {[%clk 0:02:59.1]} 3. Bg2 {[%clk 0:03:03]} 3... g6 {[%clk 0:03:00.7]}
4. Nc3 {[%clk 0:03:03.7]} 4... Bg7 {[%clk 0:03:02.2]} 5. Nf3 {[%clk 0:03:04]}
5... d6 {[%clk 0:03:02.6]} 6. O-O {[%clk 0:03:03.9]} 6... Nh6 {[%clk 0:03:03.3]}
7. a3 {[%clk 0:02:44]} 7... Nf5 {[%clk 0:03:02.1]} 8. Rb1 {[%clk 0:02:42.9]}
8... Be6 {[%clk 0:02:33.5]} 9. d3 {[%clk 0:02:40.3]} 9... O-O {[%clk 0:02:08.2]}
10. Bd2 {[%clk 0:02:39.7]} 10... a5 {[%clk 0:02:08.1]} 11. e3 {[%clk 0:01:59]}
11... h6 {[%clk 0:02:00.9]} 12. g4 {[%clk 0:01:55.3]} 12... Nxe3 {[%clk
0:01:52.8]} 13. fxe3 {[%clk 0:01:54.6]} 13... Bxg4 {[%clk 0:01:54]} 14. Qe1
{[%clk 0:01:39.3]} 14... f5 {[%clk 0:01:31.1]} 15. Ne2 {[%clk 0:01:11.8]} 15...
Ne5 {[%clk 0:01:01.3]} 16. Nf4 {[%clk 0:00:52.4]} 16... Qd7 {[%clk 0:00:42]} 17.
Nxe5 {[%clk 0:00:30.2]} 17... dxe5 {[%clk 0:00:36.5]} 18. Nxg6 {[%clk
0:00:30.3]} 18... Rf7 {[%clk 0:00:23.6]} 19. Bc3 {[%clk 0:00:25.3]} 19... Qd6
{[%clk 0:00:19.1]} 20. Nh4 {[%clk 0:00:24]} 20... e6 {[%clk 0:00:16.2]} 21. Bf3
{[%clk 0:00:16.4]} 21... Bh3 {[%clk 0:00:15.9]} 22. Rf2 {[%clk 0:00:13.5]} 22...
Qxd3 {[%clk 0:00:14.1]} 23. Rd2 {[%clk 0:00:12.8]} 23... Qxc4 {[%clk 0:00:14.6]}
24. Qg3 {[%clk 0:00:13.4]} 24... Bg4 {[%clk 0:00:13.9]} 25. Bxg4 {[%clk
0:00:14]} 25... Qxg4 {[%clk 0:00:15.1]} 26. Qxg4 {[%clk 0:00:14.6]} 26... fxg4
{[%clk 0:00:17]} 27. Rf1 {[%clk 0:00:14.9]} 27... Raf8 {[%clk 0:00:15.7]} 28.
Rxf7 {[%clk 0:00:15]} 28... Rxf7 {[%clk 0:00:17.6]} 29. Rd6 {[%clk 0:00:14.1]}
29... h5 {[%clk 0:00:14.4]} 30. Rxe6 {[%clk 0:00:13.7]} 30... Kh7 {[%clk
0:00:15.2]} 31. Bxe5 {[%clk 0:00:13.2]} 31... Bh6 {[%clk 0:00:16.7]} 32. Bf4
{[%clk 0:00:11.4]} 32... Bxf4 {[%clk 0:00:15.8]} 33. exf4 {[%clk 0:00:13.3]}
33... Rxf4 {[%clk 0:00:17.5]} 34. Re7+ {[%clk 0:00:13.5]} 34... Kh6 {[%clk
0:00:16.3]} 35. Rxb7 {[%clk 0:00:14.7]} 35... Rc4 {[%clk 0:00:16.4]} 36. Nf5+
{[%clk 0:00:13.1]} 36... Kg5 {[%clk 0:00:17.1]} 37. Ne3 {[%clk 0:00:13.9]} 37...
Re4 {[%clk 0:00:17.2]} 38. Kf2 {[%clk 0:00:13.3]} 38... Rf4+ {[%clk 0:00:14.8]}
39. Ke2 {[%clk 0:00:12.8]} 39... Rf3 {[%clk 0:00:16.3]} 40. Rb5 {[%clk
0:00:11.8]} 40... Rh3 {[%clk 0:00:16.1]} 41. Rxc5+ {[%clk 0:00:12.6]} 41... Kf4
{[%clk 0:00:17.7]} 42. Nf1 {[%clk 0:00:09.6]} 42... h4 {[%clk 0:00:18.7]} 43.
Rxa5 {[%clk 0:00:09.1]} 43... g3 {[%clk 0:00:17.3]} 44. Ra4+ {[%clk 0:00:09.7]}
44... Kg5 {[%clk 0:00:18]} 45. hxg3 {[%clk 0:00:10.5]} 45... hxg3 {[%clk
0:00:19.9]} 46. Kf3 {[%clk 0:00:10.4]} 46... g2+ {[%clk 0:00:18.8]} 47. Kxg2
{[%clk 0:00:10.8]} 47... Rb3 {[%clk 0:00:20.7]} 48. Rb4 {[%clk 0:00:11.4]} 48...
Rd3 {[%clk 0:00:22.1]} 49. Kf2 {[%clk 0:00:11.7]} 49... Kf5 {[%clk 0:00:23.5]}
50. Ke2 {[%clk 0:00:12.9]} 50... Rd7 {[%clk 0:00:25.2]} 51. Ne3+ {[%clk
0:00:13.7]} 51... Ke5 {[%clk 0:00:26.2]} 52. a4 {[%clk 0:00:13.4]} 1-0

[Event "*** Titled Tuesday Blitz AM"]
[Site "Chess.com"]
[Date "2020.01.07"]
[Round "2"]
[White "alishersuleymenov"]
[Black "Fh2411"]
[Result "1-0"]
[WhiteElo "2811"]
[BlackElo "2522"]
[TimeControl "180+2"]
[EndTime "9:24:10 PST"]
[Termination "alishersuleymenov won by checkmate"]

1. d4 {[%clk 0:03:01.9]} 1... d5 {[%clk 0:02:59.4]} 2. Nf3 {[%clk 0:03:02.5]}
2... Nf6 {[%clk 0:02:59.2]} 3. c3 {[%clk 0:03:03.8]} 3... c6 {[%clk 0:02:58.8]}
4. Bf4 {[%clk 0:03:04.1]} 4... Bf5 {[%clk 0:02:59.6]} 5. Nbd2 {[%clk 0:03:04.2]}
5... Nbd7 {[%clk 0:03:00.7]} 6. e3 {[%clk 0:03:05.4]} 6... e6 {[%clk 0:03:01.7]}
7. Ne5 {[%clk 0:03:06.9]} 7... Nxe5 {[%clk 0:02:58.2]} 8. dxe5 {[%clk
0:03:07.3]} 8... Nd7 {[%clk 0:02:59.2]} 9. h4 {[%clk 0:02:32.2]} 9... h6 {[%clk
0:02:30.1]} 10. h5 {[%clk 0:02:30.7]} 10... Qb6 {[%clk 0:02:23.1]} 11. Qc1
{[%clk 0:02:30]} 11... Nc5 {[%clk 0:02:21.8]} 12. Nf3 {[%clk 0:02:08.8]} 12...
Nd3+ {[%clk 0:02:13]} 13. Bxd3 {[%clk 0:02:09.3]} 13... Bxd3 {[%clk 0:02:14.3]}
14. Nd4 {[%clk 0:02:11.1]} 14... c5 {[%clk 0:02:05.2]} 15. Nb3 {[%clk
0:02:02.6]} 15... a5 {[%clk 0:01:58.1]} 16. Qd2 {[%clk 0:02:03.2]} 16... Bc4
{[%clk 0:01:55.8]} 17. Qc2 {[%clk 0:01:59.8]} 17... Qa6 {[%clk 0:01:46]} 18. Nc1
{[%clk 0:01:43.7]} 18... a4 {[%clk 0:01:44.8]} 19. f3 {[%clk 0:01:38.4]} 19...
b5 {[%clk 0:01:26.1]} 20. Rb1 {[%clk 0:01:26.6]} 20... b4 {[%clk 0:01:26.6]} 21.
b3 {[%clk 0:01:27.9]} 21... Bb5 {[%clk 0:01:23.8]} 22. cxb4 {[%clk 0:01:29.4]}
22... cxb4 {[%clk 0:01:24.5]} 23. Kf2 {[%clk 0:01:30.7]} 23... Rc8 {[%clk
0:01:04.9]} 24. Qd2 {[%clk 0:01:31.7]} 24... a3 {[%clk 0:01:03.8]} 25. Re1
{[%clk 0:01:32.9]} 25... Be7 {[%clk 0:01:03.9]} 26. Ne2 {[%clk 0:01:34.2]} 26...
O-O {[%clk 0:00:43.3]} 27. Rbc1 {[%clk 0:01:27]} 27... Rxc1 {[%clk 0:00:34.2]}
28. Rxc1 {[%clk 0:01:28.9]} 28... Rc8 {[%clk 0:00:31.3]} 29. Nd4 {[%clk
0:01:30.2]} 29... Bd7 {[%clk 0:00:19.9]} 30. g4 {[%clk 0:01:18.7]} 30... Qb7
{[%clk 0:00:12.7]} 31. Rg1 {[%clk 0:01:13.6]} 31... Rc3 {[%clk 0:00:10.1]} 32.
g5 {[%clk 0:01:13.8]} 32... hxg5 {[%clk 0:00:12]} 33. Bxg5 {[%clk 0:01:15.7]}
33... Bxg5 {[%clk 0:00:13.2]} 34. Rxg5 {[%clk 0:01:17.6]} 34... Kh7 {[%clk
0:00:14]} 35. Qd1 {[%clk 0:01:14.7]} 35... Qc8 {[%clk 0:00:13.5]} 36. Qg1 {[%clk
0:01:11.4]} 36... Qf8 {[%clk 0:00:15]} 37. Qb1+ {[%clk 0:00:55.3]} 37... Kh8
{[%clk 0:00:13.8]} 38. f4 {[%clk 0:00:51.7]} 38... Bc8 {[%clk 0:00:11.1]} 39.
Nb5 {[%clk 0:00:36.3]} 39... Rc5 {[%clk 0:00:08.6]} 40. Nd6 {[%clk 0:00:37.6]}
40... Ba6 {[%clk 0:00:09.7]} 41. Qd1 {[%clk 0:00:26.3]} 41... Rc3 {[%clk
0:00:07.7]} 42. h6 {[%clk 0:00:22.4]} 42... gxh6 {[%clk 0:00:07.4]} 43. Qh5
{[%clk 0:00:23.6]} 43... Rc7 {[%clk 0:00:06.9]} 44. f5 {[%clk 0:00:20.9]} 44...
Bd3 {[%clk 0:00:07.2]} 45. Rg4 {[%clk 0:00:08.6]} 45... Rc2+ {[%clk 0:00:03.9]}
46. Kg3 {[%clk 0:00:08.7]} 46... Be2 {[%clk 0:00:05.8]} 47. Nxf7+ {[%clk
0:00:06.7]} 47... Kh7 {[%clk 0:00:06.7]} 48. Qg6# {[%clk 0:00:07.5]} 1-0

[Event "*** Titled Tuesday Blitz AM"]
[Site "Chess.com"]
[Date "2020.01.07"]
[Round "2"]
[White "Endgamegenius"]
[Black "Justmig"]
[Result "0-1"]
[WhiteElo "2288"]
[BlackElo "2709"]
[TimeControl "180+2"]
[EndTime "9:24:13 PST"]
[Termination "Justmig won by resignation"]

1. e4 {[%clk 0:02:58.2]} 1... c6 {[%clk 0:03:00.2]} 2. d4 {[%clk 0:02:58.7]}
2... d5 {[%clk 0:03:02.1]} 3. Nd2 {[%clk 0:02:59.6]} 3... dxe4 {[%clk
0:03:03.1]} 4. Nxe4 {[%clk 0:03:00.2]} 4... Bf5 {[%clk 0:03:04.7]} 5. Ng3 {[%clk
0:03:00.8]} 5... Bg6 {[%clk 0:03:06.1]} 6. N1e2 {[%clk 0:03:01.7]} 6... Nd7
{[%clk 0:03:06.5]} 7. Nf4 {[%clk 0:03:01.8]} 7... e5 {[%clk 0:03:07.3]} 8. Nxg6
{[%clk 0:03:00.8]} 8... hxg6 {[%clk 0:03:09.2]} 9. c3 {[%clk 0:02:57.8]} 9...
exd4 {[%clk 0:03:03.8]} 10. Qxd4 {[%clk 0:02:58.5]} 10... Ngf6 {[%clk
0:03:05.3]} 11. Be2 {[%clk 0:02:57.9]} 11... Bc5 {[%clk 0:03:04.2]} 12. Qf4
{[%clk 0:02:55.8]} 12... O-O {[%clk 0:02:55]} 13. O-O {[%clk 0:02:56.3]} 13...
Re8 {[%clk 0:02:53.4]} 14. Bc4 {[%clk 0:02:55.8]} 14... Ne5 {[%clk 0:02:50.1]}
15. Bb3 {[%clk 0:02:51]} 15... Nd3 {[%clk 0:02:50.6]} 16. Qf3 {[%clk 0:02:45.7]}
16... Re1 {[%clk 0:01:44.7]} 17. Be3 {[%clk 0:02:25.4]} 17... Bxe3 {[%clk
0:01:02.9]} 18. fxe3 {[%clk 0:02:25.2]} 18... Rxa1 {[%clk 0:00:58.2]} 19. Rxa1
{[%clk 0:02:25.8]} 19... Qe7 {[%clk 0:00:52]} 20. Qe2 {[%clk 0:02:19]} 20... Nc5
{[%clk 0:00:52.8]} 21. Re1 {[%clk 0:02:11.3]} 21... a5 {[%clk 0:00:52.6]} 22.
Bc2 {[%clk 0:02:10.7]} 22... Rd8 {[%clk 0:00:51.6]} 23. e4 {[%clk 0:02:11]}
23... Nfd7 {[%clk 0:00:42.5]} 24. e5 {[%clk 0:02:11]} 24... Re8 {[%clk
0:00:43.9]} 25. b4 {[%clk 0:01:56]} 25... axb4 {[%clk 0:00:43.1]} 26. cxb4
{[%clk 0:01:56.5]} 26... Ne6 {[%clk 0:00:38.3]} 27. a3 {[%clk 0:01:42.7]} 27...
Nd4 {[%clk 0:00:38]} 28. Qd3 {[%clk 0:01:37.2]} 28... Nxc2 {[%clk 0:00:26.9]}
29. Qxc2 {[%clk 0:01:37.1]} 29... Nxe5 {[%clk 0:00:28.5]} 30. Kh1 {[%clk
0:01:33]} 30... Qh4 {[%clk 0:00:24.5]} 31. Qc3 {[%clk 0:01:27.2]} 31... Qf4
{[%clk 0:00:12.3]} 32. Ne4 {[%clk 0:01:25.3]} 32... Ng4 {[%clk 0:00:07.9]} 33.
g3 {[%clk 0:01:16.8]} 33... Qf5 {[%clk 0:00:04.4]} 34. h3 {[%clk 0:00:59.2]}
34... Rxe4 {[%clk 0:00:04]} 35. hxg4 {[%clk 0:00:59.6]} 35... Rxe1+ {[%clk
0:00:04.6]} 36. Qxe1 {[%clk 0:01:00.3]} 36... Qxg4 {[%clk 0:00:05.2]} 37. Qe8+
{[%clk 0:01:00.9]} 37... Kh7 {[%clk 0:00:06.6]} 38. Qxf7 {[%clk 0:00:58.4]}
38... Qh3+ {[%clk 0:00:07.7]} 39. Kg1 {[%clk 0:00:59.1]} 39... Qxg3+ {[%clk
0:00:09.6]} 40. Kh1 {[%clk 0:00:59.4]} 40... Qxa3 {[%clk 0:00:09.9]} 41. Qf4
{[%clk 0:00:59.4]} 41... Qa1+ {[%clk 0:00:09.8]} 42. Kg2 {[%clk 0:00:59.7]}
42... Qb2+ {[%clk 0:00:07.7]} 43. Kh1 {[%clk 0:01:00.4]} 43... Qb1+ {[%clk
0:00:08.8]} 44. Kg2 {[%clk 0:01:00.7]} 44... Qc2+ {[%clk 0:00:09.8]} 45. Kh1
{[%clk 0:01:01.6]} 45... Qd1+ {[%clk 0:00:10.7]} 46. Kg2 {[%clk 0:01:02.5]}
46... Qe2+ {[%clk 0:00:10.8]} 47. Kh1 {[%clk 0:01:03.3]} 47... Qh5+ {[%clk
0:00:10.7]} 48. Kg2 {[%clk 0:01:04.2]} 48... b5 {[%clk 0:00:10]} 49. Qd6 {[%clk
0:01:04.5]} 49... Qd5+ {[%clk 0:00:10.1]} 50. Qxd5 {[%clk 0:01:05.6]} 50... cxd5
{[%clk 0:00:12]} 51. Kf3 {[%clk 0:01:05.6]} 51... g5 {[%clk 0:00:11.4]} 52. Ke3
{[%clk 0:01:06.2]} 52... g4 {[%clk 0:00:12.8]} 53. Kf4 {[%clk 0:01:06.8]} 53...
Kg6 {[%clk 0:00:14.2]} 54. Kxg4 {[%clk 0:01:07.7]} 54... Kf6 {[%clk 0:00:15.8]}
55. Kf4 {[%clk 0:01:08.8]} 55... g5+ {[%clk 0:00:17.5]} 56. Kf3 {[%clk
0:01:01.9]} 56... Ke5 {[%clk 0:00:18.3]} 0-1

[Event "*** Titled Tuesday Blitz AM"]
[Site "Chess.com"]
[Date "2020.01.07"]
[Round "2"]
[White "manmanlai1"]
[Black "Azatic"]
[Result "0-1"]
[WhiteElo "2331"]
[BlackElo "2573"]
[TimeControl "180+2"]
[EndTime "9:24:14 PST"]
[Termination "Azatic won on time"]

1. Nf3 {[%clk 0:03:01.6]} 1... c5 {[%clk 0:03:01]} 2. e3 {[%clk 0:03:02.8]} 2...
Nf6 {[%clk 0:03:01]} 3. d4 {[%clk 0:03:04]} 3... g6 {[%clk 0:03:01.4]} 4. Nbd2
{[%clk 0:03:02.8]} 4... Bg7 {[%clk 0:03:01.8]} 5. c3 {[%clk 0:03:03.9]} 5... b6
{[%clk 0:03:02.6]} 6. Bd3 {[%clk 0:03:03.6]} 6... Bb7 {[%clk 0:03:03.7]} 7. O-O
{[%clk 0:03:04.6]} 7... d5 {[%clk 0:03:05.2]} 8. Ne5 {[%clk 0:02:53.7]} 8... O-O
{[%clk 0:03:05.8]} 9. f4 {[%clk 0:02:53]} 9... Nc6 {[%clk 0:03:03.5]} 10. Qe2
{[%clk 0:02:51.6]} 10... Rc8 {[%clk 0:03:02.6]} 11. Ndf3 {[%clk 0:02:47.8]}
11... Ne4 {[%clk 0:03:01.1]} 12. Bd2 {[%clk 0:02:48.9]} 12... e6 {[%clk
0:02:54.1]} 13. Be1 {[%clk 0:02:44.1]} 13... Ne7 {[%clk 0:02:54.7]} 14. Bh4
{[%clk 0:02:43.6]} 14... f6 {[%clk 0:02:55.6]} 15. Ng4 {[%clk 0:02:34.5]} 15...
Nf5 {[%clk 0:02:56.6]} 16. Be1 {[%clk 0:02:31.1]} 16... h5 {[%clk 0:02:47.7]}
17. Nf2 {[%clk 0:02:29.2]} 17... Qd6 {[%clk 0:02:45.4]} 18. Nd2 {[%clk
0:02:25.7]} 18... Nxf2 {[%clk 0:02:23.6]} 19. Bxf2 {[%clk 0:02:22.1]} 19... Rce8
{[%clk 0:02:13.1]} 20. Nf3 {[%clk 0:02:12.4]} 20... cxd4 {[%clk 0:02:13.1]} 21.
cxd4 {[%clk 0:02:08.4]} 21... Rc8 {[%clk 0:02:13.7]} 22. Nh4 {[%clk 0:02:00.6]}
22... Kh7 {[%clk 0:01:59]} 23. a3 {[%clk 0:01:42.6]} 23... Rc7 {[%clk
0:01:44.7]} 24. Rac1 {[%clk 0:01:40.6]} 24... Rfc8 {[%clk 0:01:45]} 25. Rxc7
{[%clk 0:01:41.4]} 25... Qxc7 {[%clk 0:01:43.6]} 26. h3 {[%clk 0:01:40.9]} 26...
Qf7 {[%clk 0:01:20.9]} 27. Nxf5 {[%clk 0:01:08.6]} 27... exf5 {[%clk 0:01:18.3]}
28. g4 {[%clk 0:01:07.7]} 28... hxg4 {[%clk 0:01:15.9]} 29. hxg4 {[%clk
0:01:09.2]} 29... fxg4 {[%clk 0:01:17]} 30. Qxg4 {[%clk 0:01:10.3]} 30... f5
{[%clk 0:01:18.1]} 31. Qh3+ {[%clk 0:01:09.6]} 31... Bh6 {[%clk 0:01:10]} 32.
Kg2 {[%clk 0:00:58]} 32... Kg7 {[%clk 0:01:09.8]} 33. Bh4 {[%clk 0:00:53.2]}
33... Rh8 {[%clk 0:01:08]} 34. Rh1 {[%clk 0:00:46.3]} 34... Kg8 {[%clk 0:00:58]}
35. Qg3 {[%clk 0:00:35.2]} 35... Bg7 {[%clk 0:00:56.5]} 36. Qe1 {[%clk
0:00:35.1]} 36... Qc7 {[%clk 0:00:53.4]} 37. Bg5 {[%clk 0:00:27.9]} 37... Rxh1
{[%clk 0:00:45.5]} 38. Kxh1 {[%clk 0:00:29.8]} 38... Kf7 {[%clk 0:00:40.9]} 39.
Kg2 {[%clk 0:00:29.9]} 39... Bc8 {[%clk 0:00:39.4]} 40. Kg3 {[%clk 0:00:30.9]}
40... Be6 {[%clk 0:00:39.2]} 41. Qd2 {[%clk 0:00:32]} 41... Bf8 {[%clk
0:00:36.4]} 42. Be2 {[%clk 0:00:29.7]} 42... a5 {[%clk 0:00:33.2]} 43. Bf3
{[%clk 0:00:24.6]} 43... Qc4 {[%clk 0:00:27.3]} 44. Be2 {[%clk 0:00:12.6]} 44...
Qc6 {[%clk 0:00:19.3]} 0-1